bitfinex/quotes_BTCUSD_20230905
["timestamp","ask_amount","ask_price","bid_price","bid_amount"]
[1693911265065,0.003,25769.0,25768.0,3.50419743]
[1693911266828,0.0816,25769.0,25768.0,3.50419743]
[1693911267043,0.003,25769.0,25768.0,3.50419743]
[1693911268525,0.09048,25769.0,25768.0,3.50419743]
[1693911268727,0.003,25769.0,25768.0,3.50419743]
[1693911269530,0.11688,25769.0,25768.0,3.50419743]
[1693911269772,0.003,25769.0,25768.0,3.50419743]
[1693911274804,0.09546,25769.0,25768.0,3.50419743]
[1693911274998,0.003,25769.0,25768.0,3.50419743]
[1693911277011,0.08616,25769.0,25768.0,3.50419743]
[1693911277604,0.0966,25769.0,25768.0,3.50419743]
[1693911277823,0.003,25769.0,25768.0,3.50419743]
[1693911278316,0.09126,25769.0,25768.0,3.50419743]
[1693911278546,0.003,25769.0,25768.0,3.50419743]
[1693911279211,0.08154,25769.0,25768.0,3.50419743]
[1693911279711,0.09312,25769.0,25768.0,3.50419743]
[1693911279990,0.003,25769.0,25768.0,3.50419743]
[1693911280778,0.06942,25769.0,25768.0,3.50419743]
[1693911281077,0.06936,25769.0,25768.0,3.50419743]
[1693911281298,0.003,25769.0,25768.0,4.62255215]
[1693911281884,0.07704,25769.0,25768.0,4.62255215]
[1693911282285,0.003,25769.0,25768.0,4.62255215]
[1693911282502,0.08856,25769.0,25768.0,4.62255215]
[1693911282702,0.09744,25769.0,25768.0,4.62255215]
[1693911283165,0.003,25769.0,25768.0,4.62255215]
[1693911283371,0.09588,25769.0,25768.0,4.62255215]
[1693911283600,0.003,25769.0,25768.0,4.62255215]
[1693911284004,0.0948,25769.0,25768.0,4.62255215]
[1693911284304,0.096,25769.0,25768.0,4.62255215]
[1693911284528,0.003,25769.0,25768.0,4.62255215]
[1693911284974,0.09456,25769.0,25768.0,4.62255215]
[1693911285200,0.09486,25769.0,25768.0,4.62255215]
[1693911285398,0.0948,25769.0,25768.0,4.62255215]
[1693911285606,0.003,25769.0,25768.0,4.62255215]
[1693911286014,0.0948,25769.0,25768.0,4.62255215]
[1693911286235,0.003,25769.0,25768.0,4.62255215]
[1693911286367,0.0942,25769.0,25768.0,4.62255215]
[1693911286593,0.0945,25769.0,25768.0,4.62255215]
[1693911286787,0.003,25769.0,25768.0,4.62255215]
[1693911287541,0.003,25769.0,25768.0,4.32255215]
[1693911287542,0.67832089,25769.0,25768.0,4.32255215]
[1693911287729,0.78112089,25769.0,25768.0,4.31095375]
[1693911288107,1.11220089,25769.0,25768.0,4.31095375]
[1693911288292,1.10704089,25769.0,25768.0,4.31095375]
[1693911288493,1.10584089,25769.0,25768.0,4.31095375]
[1693911288704,1.10272089,25769.0,25768.0,4.31095375]
[1693911288907,1.10008089,25769.0,25768.0,4.31095375]
[1693911289136,1.09852089,25769.0,25768.0,4.31095375]
[1693911289330,1.08940089,25769.0,25768.0,4.31095375]
[1693911289557,1.09744089,25769.0,25768.0,4.31095375]
[1693911289731,1.09588089,25769.0,25768.0,4.31095375]
[1693911290133,1.09504089,25769.0,25768.0,4.31095375]
[1693911290335,1.09156089,25769.0,25768.0,4.31095375]
[1693911290536,1.09204089,25769.0,25768.0,4.31095375]
[1693911290745,1.09120089,25769.0,25768.0,4.31095375]
[1693911291201,1.08964089,25769.0,25768.0,4.31095375]
[1693911291403,1.06960089,25769.0,25768.0,4.31095375]
[1693911291624,1.09924089,25769.0,25768.0,4.31095375]
[1693911291833,1.09768089,25769.0,25768.0,4.31095375]
[1693911292039,1.09612089,25769.0,25768.0,4.31095375]
[1693911292232,1.09492089,25769.0,25768.0,4.31095375]
[1693911292446,0.79232527,25769.0,25768.0,4.31095375]
[1693911292667,0.49590527,25769.0,25768.0,4.31095375]
[1693911292879,0.48756527,25769.0,25768.0,3.19259903]
[1693911293004,0.48756527,25769.0,25768.0,4.30800811]
[1693911293199,0.48726527,25769.0,25768.0,4.30800811]
[1693911293405,0.48384527,25769.0,25768.0,4.30800811]
[1693911293606,0.48846527,25769.0,25768.0,4.30800811]
[1693911294064,0.48402527,25769.0,25768.0,4.30800811]
[1693911294268,0.48378527,25769.0,25768.0,4.30800811]
[1693911294844,0.48378527,25769.0,25768.0,4.30799878]
[1693911295252,0.48690527,25769.0,25768.0,4.30799878]
[1693911295448,0.38964527,25769.0,25768.0,4.30799878]
[1693911298444,0.47724527,25769.0,25768.0,4.30799878]
[1693911298848,0.47736527,25769.0,25768.0,4.30799878]
[1693911299048,0.48672527,25769.0,25768.0,4.30799878]
[1693911299256,0.38964527,25769.0,25768.0,4.30799878]
[1693911299396,0.47526527,25769.0,25768.0,4.30799878]
[1693911299759,0.48582527,25769.0,25768.0,4.30799878]
[1693911300214,0.49386527,25769.0,25768.0,4.30799878]
[1693911300420,0.48606527,25769.0,25768.0,4.30799878]
[1693911300829,0.49464527,25769.0,25768.0,4.30799878]
[1693911301034,0.50148527,25769.0,25768.0,4.30799878]
[1693911301240,0.48360527,25769.0,25768.0,4.30799878]
[1693911301459,0.49134527,25769.0,25768.0,4.30799878]
[1693911301665,0.49872527,25769.0,25768.0,4.30799878]
[1693911301869,0.49998527,25769.0,25768.0,4.30799878]
[1693911302074,0.49920527,25769.0,25768.0,4.30799878]
[1693911302276,0.48522527,25769.0,25768.0,4.30799878]
[1693911302478,0.49356527,25769.0,25768.0,4.30799878]
[1693911302704,0.49920527,25769.0,25768.0,4.30799878]
[1693911303132,0.49854527,25769.0,25768.0,4.30799878]
[1693911303350,0.49914527,25769.0,25768.0,4.30799878]
[1693911303548,0.49902527,25769.0,25768.0,4.30799878]
[1693911303994,0.49734527,25769.0,25768.0,4.30799878]
[1693911304199,0.38964527,25769.0,25768.0,4.30799878]
[1693911304403,0.46662527,25769.0,25768.0,4.30799878]
[1693911304813,0.47754527,25769.0,25768.0,4.30799878]
[1693911305016,0.48636527,25769.0,25768.0,4.30799878]
[1693911305220,0.48018527,25769.0,25768.0,4.30799878]
[1693911305432,0.48762527,25769.0,25768.0,4.30799878]
[1693911305850,0.49386527,25769.0,25768.0,4.30799878]
[1693911306050,0.49686527,25769.0,25768.0,4.30799878]
[1693911306247,0.38964527,25769.0,25768.0,4.30799878]
[1693911306460,0.46524527,25769.0,25768.0,4.30799878]
[1693911306677,0.47598527,25769.0,25768.0,4.30799878]
[1693911306877,0.48552527,25769.0,25768.0,4.30799878]
[1693911307088,0.47010527,25769.0,25768.0,4.30799878]
[1693911307299,0.46596527,25769.0,25768.0,4.30799878]
[1693911307707,0.46668527,25769.0,25768.0,4.30799878]
[1693911307925,0.47520527,25769.0,25768.0,4.30799878]
[1693911308133,0.38964527,25769.0,25768.0,4.30799878]
[1693911308772,0.45828527,25769.0,25768.0,4.30799878]
[1693911308972,0.46752527,25769.0,25768.0,4.30799878]
[1693911309199,0.38964527,25769.0,25768.0,4.30799878]
[1693911309713,0.46626527,25769.0,25768.0,4.30799878]
[1693911309912,0.46596527,25769.0,25768.0,4.30799878]
[1693911310126,0.38964527,25769.0,25768.0,4.30799878]
[1693911310689,0.46332527,25769.0,25768.0,4.30799878]
[1693911310896,0.47208527,25769.0,25768.0,4.30799878]
[1693911311040,0.38964527,25769.0,25768.0,4.30799878]
[1693911311244,0.46260527,25769.0,25768.0,4.30799878]
[1693911311689,0.47118527,25769.0,25768.0,4.30799878]
[1693911311909,0.38964527,25769.0,25768.0,4.30799878]
[1693911314619,0.47202527,25769.0,25768.0,4.30799878]
[1693911314835,0.47706527,25769.0,25768.0,4.30799878]
[1693911315043,0.38964527,25769.0,25768.0,4.30799878]
[1693911315927,0.47850527,25769.0,25768.0,4.30799878]
[1693911316105,0.38964527,25769.0,25768.0,4.30799878]
[1693911317362,0.46320527,25769.0,25768.0,4.30799878]
[1693911317573,0.47454527,25769.0,25768.0,4.30799878]
[1693911317783,0.38964527,25769.0,25768.0,4.30799878]
[1693911318183,0.47358527,25769.0,25768.0,4.30799878]
[1693911318422,0.47994527,25769.0,25768.0,4.30799878]
[1693911318627,0.48222527,25769.0,25768.0,4.30799878]
[1693911318832,0.48234527,25769.0,25768.0,4.30799878]
[1693911319037,0.48246527,25769.0,25768.0,4.30799878]
[1693911319237,0.48294527,25769.0,25768.0,4.30799878]
[1693911319441,0.48306527,25769.0,25768.0,4.30799878]
[1693911319646,0.48342527,25769.0,25768.0,4.30799878]
[1693911319855,0.48108527,25769.0,25768.0,4.30799878]
[1693911319979,0.48360527,25769.0,25768.0,4.30799878]
[1693911320485,0.48366527,25769.0,25768.0,4.30799878]
[1693911320705,0.38964527,25769.0,25768.0,4.30799878]
[1693911323381,0.46266527,25769.0,25768.0,4.30799878]
[1693911323565,0.46266527,25769.0,25768.0,4.31937399]
[1693911323769,0.47256527,25769.0,25768.0,4.31937399]
[1693911323980,0.38964527,25769.0,25768.0,4.31937399]
[1693911324710,0.47250527,25769.0,25768.0,4.31937399]
[1693911324923,0.38964527,25769.0,25768.0,4.31937399]
[1693911325802,0.46956527,25769.0,25768.0,4.31937399]
[1693911326248,0.46962527,25769.0,25768.0,4.31937399]
[1693911326451,0.47850527,25769.0,25768.0,4.31937399]
[1693911326603,0.38964527,25769.0,25768.0,4.31937399]
[1693911328648,0.49206527,25769.0,25768.0,4.31937399]
[1693911328784,0.47610527,25769.0,25768.0,4.31937399]
[1693911329329,0.48714527,25769.0,25768.0,4.31937399]
[1693911329480,0.49566527,25769.0,25768.0,4.31937399]
[1693911329680,0.47634527,25769.0,25768.0,4.31937399]
[1693911329910,0.48300527,25769.0,25768.0,4.31937399]
[1693911330118,0.49266527,25769.0,25768.0,4.31937399]
[1693911330318,0.50004527,25769.0,25768.0,4.31937399]
[1693911330551,0.49134527,25769.0,25768.0,4.31937399]
[1693911330732,0.49932527,25769.0,25768.0,4.31937399]
[1693911331105,0.50298527,25769.0,25768.0,4.31937399]
[1693911331311,0.50364527,25769.0,25768.0,4.31937399]
[1693911331612,0.49668527,25769.0,25768.0,4.31937399]
[1693911332186,0.49680527,25769.0,25768.0,4.31937399]
[1693911332370,0.50406527,25769.0,25768.0,4.31937399]
[1693911332545,0.47838527,25769.0,25768.0,4.31937399]
[1693911332746,0.48816527,25769.0,25768.0,4.31937399]
[1693911333146,0.49620527,25769.0,25768.0,4.31937399]
[1693911333352,0.50250527,25769.0,25768.0,4.31937399]
[1693911333549,0.38964527,25769.0,25768.0,4.31937399]
[1693911333754,0.46542527,25769.0,25768.0,4.31937399]
[1693911334357,0.47964527,25769.0,25768.0,4.31937399]
[1693911334559,0.38964527,25769.0,25768.0,4.31937399]
[1693911335753,0.46272527,25769.0,25768.0,4.31937399]
[1693911335960,0.47112527,25769.0,25768.0,4.31937399]
[1693911336157,0.47658527,25769.0,25768.0,4.31937399]
[1693911336359,0.38964527,25769.0,25768.0,4.31937399]
[1693911336561,0.47718527,25769.0,25768.0,4.31937399]
[1693911336726,0.47736527,25769.0,25768.0,4.31937399]
[1693911337311,0.47748527,25769.0,25768.0,4.31937399]
[1693911337441,0.47760527,25769.0,25768.0,4.31937399]
[1693911337647,0.47766527,25769.0,25768.0,4.31937399]
[1693911338049,0.47796527,25769.0,25768.0,4.31937399]
[1693911338277,0.38964527,25769.0,25768.0,4.31937399]
[1693911338677,0.47634527,25769.0,25768.0,4.31937399]
[1693911338880,0.47784527,25769.0,25768.0,4.31937399]
[1693911339085,0.47772527,25769.0,25768.0,4.31937399]
[1693911339314,0.47778527,25769.0,25768.0,4.31937399]
[1693911339659,0.47850527,25769.0,25768.0,4.31937399]
[1693911339843,0.47898527,25769.0,25768.0,4.31937399]
[1693911340049,0.47892527,25769.0,25768.0,4.31937399]
[1693911340257,0.38964527,25769.0,25768.0,4.31937399]
[1693911340463,0.47652527,25769.0,25768.0,4.31937399]
[1693911340672,0.48042527,25769.0,25768.0,4.31937399]
[1693911341008,0.48060527,25769.0,25768.0,4.31937399]
[1693911341190,0.38964527,25769.0,25768.0,4.31937399]
[1693911341651,0.47862527,25769.0,25768.0,4.31937399]
[1693911341868,0.48048527,25769.0,25768.0,4.31937399]
[1693911342047,0.48054527,25769.0,25768.0,4.31937399]
[1693911342257,0.48168527,25769.0,25768.0,4.31937399]
[1693911342409,0.48210527,25769.0,25768.0,4.31937399]
[1693911342760,0.48012527,25769.0,25768.0,4.31937399]
[1693911343170,0.47994527,25769.0,25768.0,4.31937399]
[1693911343584,0.48354527,25769.0,25768.0,3.20097424]
[1693911343788,0.48462527,25769.0,25768.0,4.31934997]
[1693911344005,0.48690527,25769.0,25768.0,4.31934997]
[1693911344183,0.48684527,25769.0,25768.0,4.31934997]
[1693911344393,0.48678527,25769.0,25768.0,4.31934997]
[1693911344595,0.48666527,25769.0,25768.0,4.31934997]
[1693911344794,0.48480527,25769.0,25768.0,4.31934997]
[1693911344972,0.48474527,25769.0,25768.0,4.31934997]
[1693911345169,0.48462527,25769.0,25768.0,4.31934997]
[1693911345366,0.48432527,25769.0,25768.0,4.31934997]
[1693911345566,0.48402527,25769.0,25768.0,4.31934997]
[1693911345776,0.48312527,25769.0,25768.0,4.31934997]
[1693911345981,0.48264527,25769.0,25768.0,4.31934997]
[1693911346183,0.47982527,25769.0,25768.0,4.31934997]
[1693911346588,0.47946527,25769.0,25768.0,4.31934997]
[1693911346947,0.47916527,25769.0,25768.0,4.31934997]
[1693911347199,0.47922527,25769.0,25768.0,4.31934997]
[1693911347385,0.47928527,25769.0,25768.0,4.31934997]
[1693911347758,0.48060527,25769.0,25768.0,4.31934997]
[1693911347975,0.47934527,25769.0,25768.0,4.31934997]
[1693911348139,0.38964527,25769.0,25768.0,4.31934997]
[1693911348364,0.47724527,25769.0,25768.0,4.31934997]
[1693911348797,0.48012527,25769.0,25768.0,4.31934997]
[1693911349003,0.48066527,25769.0,25768.0,4.31934997]
[1693911349232,0.38964527,25769.0,25768.0,4.31934997]
[1693911349802,0.47274527,25769.0,25768.0,4.31934997]
[1693911350002,0.38964527,25769.0,25768.0,4.31934997]
[1693911350853,0.47736527,25769.0,25768.0,4.31934997]
[1693911351034,0.38964527,25769.0,25768.0,4.31934997]
[1693911351638,0.47400527,25769.0,25768.0,4.31934997]
[1693911351881,0.47970527,25769.0,25768.0,4.31934997]
[1693911352087,0.38964527,25769.0,25768.0,4.31934997]
[1693911353371,0.46266527,25769.0,25768.0,4.31934997]
[1693911353649,0.47184527,25769.0,25768.0,4.31934997]
[1693911353804,0.47814527,25769.0,25768.0,4.31934997]
[1693911354008,0.003,25769.0,25768.0,4.31934997]
[1693911356462,0.08076,25769.0,25768.0,4.31934997]
[1693911356664,0.003,25769.0,25768.0,4.31934997]
[1693911359023,0.08886,25769.0,25768.0,4.31934997]
[1693911359354,0.003,25769.0,25768.0,4.31934997]
[1693911360786,0.09222,25769.0,25768.0,4.31934997]
[1693911361030,0.003,25769.0,25768.0,4.31934997]
[1693911361259,0.09876,25769.0,25768.0,4.31934997]
[1693911361438,0.09804,25769.0,25768.0,4.31934997]
[1693911361665,0.0981,25769.0,25768.0,4.31934997]
[1693911361816,0.003,25769.0,25768.0,4.31934997]
[1693911362455,0.09354,25769.0,25768.0,4.31934997]
[1693911362659,0.08034,25769.0,25768.0,4.31934997]
[1693911362978,0.003,25769.0,25768.0,4.31934997]
[1693911363379,0.09528,25769.0,25768.0,4.31934997]
[1693911363584,0.003,25769.0,25768.0,4.31934997]
[1693911364191,0.09768,25769.0,25768.0,4.31934997]
[1693911364535,0.09798,25769.0,25768.0,4.31934997]
[1693911364735,0.003,25769.0,25768.0,4.31934997]
[1693911365120,0.0972,25769.0,25768.0,4.31934997]
[1693911365500,0.003,25769.0,25768.0,4.31934997]
[1693911365700,0.09714,25769.0,25768.0,4.31934997]
[1693911365933,0.0915,25769.0,25768.0,4.31934997]
[1693911366318,0.003,25769.0,25768.0,4.31934997]
[1693911366871,0.08502,25769.0,25768.0,4.31934997]
[1693911367246,0.0846,25769.0,25768.0,4.31934997]
[1693911367449,0.003,25769.0,25768.0,4.31934997]
[1693911368884,0.08538,25769.0,25768.0,4.31934997]
[1693911369229,0.003,25769.0,25768.0,4.31934997]
[1693911369936,0.08748,25769.0,25768.0,4.31934997]
[1693911370521,0.08772,25769.0,25768.0,4.31934997]
[1693911370728,0.003,25769.0,25768.0,4.31934997]
[1693911372988,0.07092,25769.0,25768.0,4.31934997]
[1693911373309,0.084,25769.0,25768.0,4.31934997]
[1693911373544,0.003,25769.0,25768.0,4.31934997]
[1693911374324,0.08514,25769.0,25768.0,4.31934997]
[1693911374529,0.07788,25769.0,25768.0,4.31934997]
[1693911374729,0.08634,25769.0,25768.0,4.31934997]
[1693911375103,0.003,25769.0,25768.0,4.31934997]
[1693911375675,0.08622,25769.0,25768.0,4.31934997]
[1693911375864,0.08604,25769.0,25768.0,4.31934997]
[1693911375996,0.08286,25769.0,25768.0,4.31934997]
[1693911376195,0.003,25769.0,25768.0,4.31934997]
[1693911376978,0.07998,25769.0,25768.0,4.31934997]
[1693911377204,0.0789,25769.0,25768.0,4.31934997]
[1693911377419,0.003,25769.0,25768.0,4.31934997]
[1693911379016,0.08184,25769.0,25768.0,4.31934997]
[1693911379225,0.003,25769.0,25768.0,4.31934997]
[1693911380246,0.07272,25771.0,25768.0,4.61934997]
[1693911380446,0.09317272,25772.0,25769.0,1.11837573]
[1693911380651,0.09317272,25772.0,25770.0,3.104384]
[1693911380865,0.07302,25772.0,25770.0,3.104384]
[1693911381067,0.07488,25771.0,25770.0,3.104384]
[1693911381274,0.06996,25772.0,25770.0,4.2227197]
[1693911381484,0.08388,25772.0,25770.0,3.104384]
[1693911381687,0.0937,25772.0,25770.0,3.104384]
[1693911382092,0.10132,25772.0,25770.0,3.104384]
[1693911382294,0.001,25771.0,25770.0,3.104384]
[1693911382501,0.001,25771.0,25770.0,4.22272017]
[1693911382718,0.08398,25771.0,25770.0,4.22272017]
[1693911382921,0.08478,25771.0,25770.0,4.22272017]
[1693911383123,0.98174625,25771.0,25770.0,2.328288]
[1693911383322,0.88857353,25771.0,25770.0,0.776096]
[1693911383647,1.49085353,25771.0,25770.0,0.776096]
[1693911383826,1.26417353,25771.0,25770.0,0.776096]
[1693911384002,1.26417353,25771.0,25770.0,0.80062799]
[1693911384003,1.35734044,25771.0,25770.0,0.80062799]
[1693911384188,1.15854136,25771.0,25770.0,0.776096]
[1693911384381,1.17702136,25771.0,25770.0,0.776096]
[1693911384587,1.17702136,25771.0,25770.0,0.80055642]
[1693911385000,1.18982136,25771.0,25770.0,0.80055642]
[1693911385230,1.12070136,25771.0,25770.0,0.80055642]
[1693911385423,1.14302136,25771.0,25770.0,1.57665242]
[1693911385860,1.16342136,25771.0,25770.0,1.57665242]
[1693911386058,1.17986136,25771.0,25770.0,1.57665242]
[1693911386262,1.14566136,25771.0,25770.0,1.57665242]
[1693911386461,1.18154136,25771.0,25770.0,1.57665242]
[1693911386928,1.18694136,25771.0,25770.0,1.57665242]
[1693911387121,1.19462136,25771.0,25770.0,1.57665242]
[1693911387342,1.10606136,25771.0,25770.0,1.57665242]
[1693911387541,1.15286136,25771.0,25770.0,1.57665242]
[1693911387915,1.15070136,25771.0,25770.0,1.57665242]
[1693911388088,1.16930136,25771.0,25770.0,1.57665242]
[1693911388289,1.16126136,25771.0,25770.0,1.57665242]
[1693911388490,1.14770136,25771.0,25770.0,2.35274842]
[1693911388697,1.15178136,25771.0,25770.0,2.35274842]
[1693911388922,1.16594136,25771.0,25770.0,1.57665242]
[1693911389326,1.10750136,25771.0,25770.0,1.57665242]
[1693911389778,0.96266136,25771.0,25770.0,1.57665242]
[1693911389895,1.10726136,25771.0,25770.0,1.57665242]
[1693911390099,0.97664136,25771.0,25770.0,1.57665242]
[1693911390340,1.12910136,25771.0,25770.0,1.57665242]
[1693911390552,1.14422136,25771.0,25770.0,1.57665242]
[1693911390956,1.16006136,25771.0,25770.0,1.57665242]
[1693911391231,1.13366136,25771.0,25770.0,1.57665242]
[1693911391376,1.15058136,25771.0,25770.0,1.57665242]
[1693911391578,1.16066136,25771.0,25770.0,1.57665242]
[1693911391787,1.17314136,25771.0,25770.0,1.57665242]
[1693911392005,1.13594136,25771.0,25770.0,1.57665242]
[1693911392205,1.15382136,25771.0,25770.0,1.57665242]
[1693911392429,1.16702136,25771.0,25770.0,1.57665242]
[1693911392548,1.17230136,25771.0,25770.0,1.57665242]
[1693911392753,1.17170136,25771.0,25770.0,1.57665242]
[1693911392968,1.17122136,25771.0,25770.0,1.57665242]
[1693911393216,1.17086136,25771.0,25770.0,1.57665242]
[1693911393476,1.17050136,25771.0,25770.0,1.57665242]
[1693911393838,1.16942136,25771.0,25770.0,1.57665242]
[1693911394040,1.12334136,25771.0,25770.0,1.57665242]
[1693911394241,1.14794136,25771.0,25770.0,1.57665242]
[1693911394443,1.16366136,25771.0,25770.0,1.57665242]
[1693911394742,1.17074136,25771.0,25770.0,1.57665242]
[1693911394972,1.13402136,25771.0,25770.0,1.57665242]
[1693911395175,1.15322136,25771.0,25770.0,1.57665242]
[1693911395386,1.16870136,25771.0,25770.0,1.57665242]
[1693911395592,1.17182136,25771.0,25770.0,1.57665242]
[1693911395798,1.17194136,25771.0,25770.0,1.57665242]
[1693911396198,1.17158136,25771.0,25770.0,1.57665242]
[1693911396417,1.17074136,25771.0,25770.0,1.57665242]
[1693911396741,1.16930136,25771.0,25770.0,1.57665242]
[1693911396941,1.16858136,25771.0,25770.0,1.57665242]
[1693911397124,1.13498136,25771.0,25770.0,1.57665242]
[1693911397350,1.16594136,25771.0,25770.0,1.57665242]
[1693911397780,1.16726136,25771.0,25770.0,1.57665242]
[1693911397983,1.16654136,25771.0,25770.0,1.57665242]
[1693911398190,1.16642136,25771.0,25770.0,1.57665242]
[1693911398407,0.90705218,25771.0,25770.0,0.02446042]
[1693911398622,0.90705218,25771.0,25770.0,0.02453032]
[1693911398623,2.60219453,25771.0,25770.0,0.02453032]
[1693911398917,3.48597453,25771.0,25770.0,0.02453032]
[1693911399123,0.06,25769.0,25767.0,0.776183]
[1693911399330,0.68536574,25768.0,25766.0,1.552387]
[1693911399540,0.1028,25767.0,25766.0,1.552404]
[1693911399743,0.81836527,25767.0,25766.0,1.552404]
[1693911399958,0.81920527,25767.0,25766.0,1.552404]
[1693911400136,1.04818326,25767.0,25766.0,1.552404]
[1693911400590,1.04038326,25767.0,25766.0,1.552404]
[1693911400796,1.03114326,25767.0,25766.0,1.552404]
[1693911401018,0.99994326,25767.0,25766.0,1.552404]
[1693911401235,1.03222326,25767.0,25766.0,1.552404]
[1693911401845,0.99098326,25767.0,25766.0,1.567404]
[1693911402244,1.01114326,25767.0,25766.0,1.567404]
[1693911402401,1.01302326,25767.0,25766.0,1.585404]
[1693911402609,1.02634326,25767.0,25766.0,1.585404]
[1693911402815,0.84772326,25767.0,25766.0,1.585404]
[1693911403031,1.01854326,25767.0,25766.0,1.585404]
[1693911403590,1.02334326,25767.0,25766.0,0.809188]
[1693911403794,1.04254326,25767.0,25766.0,0.809188]
[1693911404054,0.99358326,25767.0,25766.0,0.809188]
[1693911404261,0.99250326,25767.0,25766.0,0.809188]
[1693911404473,1.01470326,25767.0,25766.0,0.809188]
[1693911404675,1.03174326,25767.0,25766.0,0.809188]
[1693911404858,0.99490326,25767.0,25766.0,0.809188]
[1693911405076,1.01194326,25767.0,25766.0,0.809188]
[1693911405492,1.04122326,25767.0,25766.0,0.809188]
[1693911405696,1.03030326,25767.0,25766.0,0.809188]
[1693911405896,1.04278326,25767.0,25766.0,0.809188]
[1693911406169,1.00750326,25767.0,25766.0,0.809188]
[1693911406628,1.01518326,25767.0,25766.0,0.809188]
[1693911406833,1.01590326,25767.0,25766.0,0.809188]
[1693911407017,1.01566326,25767.0,25766.0,0.809188]
[1693911407544,1.01650326,25767.0,25766.0,0.809216]
[1693911407699,1.01698326,25767.0,25766.0,0.809216]
[1693911407919,1.01734326,25767.0,25766.0,0.809216]
[1693911408119,1.01854326,25767.0,25766.0,0.809216]
[1693911408346,1.01866326,25767.0,25766.0,0.809216]
[1693911408550,1.02106326,25767.0,25766.0,0.809216]
[1693911409048,1.02118326,25767.0,25766.0,0.809216]
[1693911409257,1.02130326,25767.0,25766.0,0.809216]
[1693911409606,1.02046326,25767.0,25766.0,0.809216]
[1693911409814,1.01998326,25767.0,25766.0,0.809216]
[1693911410022,1.01854326,25767.0,25766.0,0.809216]
[1693911410202,1.01854326,25767.0,25766.0,0.80911855]
[1693911410654,1.01746326,25767.0,25766.0,0.80911855]
[1693911410883,1.01758326,25767.0,25766.0,0.80911855]
[1693911411090,1.02214326,25767.0,25766.0,0.80911855]
[1693911411499,1.02082326,25767.0,25766.0,0.80911855]
[1693911411693,0.86470326,25767.0,25766.0,1.58533455]
[1693911411903,1.01554326,25767.0,25766.0,1.58533455]
[1693911412312,1.01566326,25767.0,25766.0,1.58533455]
[1693911412512,1.01578326,25767.0,25766.0,1.58533455]
[1693911412718,1.01494326,25767.0,25766.0,1.58533455]
[1693911412925,1.01518326,25767.0,25766.0,1.58533455]
[1693911413129,1.01518326,25767.0,25766.0,0.80911855]
[1693911413331,1.02034326,25767.0,25766.0,0.80911855]
[1693911413528,1.01974326,25767.0,25766.0,0.80911855]
[1693911413732,1.01998326,25767.0,25766.0,0.80911855]
[1693911413946,1.01998326,25767.0,25766.0,0.83212627]
[1693911414309,1.02034326,25767.0,25766.0,0.83212627]
[1693911414506,0.85924326,25767.0,25766.0,0.83212627]
[1693911414709,1.01398326,25767.0,25766.0,0.83212627]
[1693911414915,0.78812527,25767.0,25766.0,0.05591027]
[1693911415124,2.50377607,25767.0,25766.0,0.05591027]
[1693911415297,4.06578231,25767.0,25766.0,0.05591027]
[1693911415513,4.02602231,25767.0,25766.0,0.05591027]
[1693911415717,0.1,25765.0,25761.0,1.41472687]
[1693911415938,0.1028,25762.0,25761.0,1.41472687]
[1693911416140,0.48944527,25762.0,25761.0,1.41472687]
[1693911416767,0.61454527,25762.0,25761.0,1.41472687]
[1693911417027,0.61858527,25762.0,25761.0,1.41572687]
[1693911417470,0.61858527,25762.0,25761.0,1.41672687]
[1693911417471,0.60608527,25762.0,25761.0,1.41672687]
[1693911417786,0.61874527,25762.0,25761.0,1.41672687]
[1693911418223,0.63194527,25762.0,25761.0,1.41672687]
[1693911418334,0.64334527,25762.0,25761.0,1.554705]
[1693911418532,0.90598944,25762.0,25761.0,1.554705]
[1693911418733,0.91804944,25762.0,25761.0,1.554705]
[1693911419160,1.06390944,25762.0,25761.0,1.554705]
[1693911419386,0.92872944,25762.0,25761.0,1.554705]
[1693911419572,0.91468944,25762.0,25761.0,1.554705]
[1693911419943,0.92464944,25762.0,25761.0,1.55471]
[1693911420121,0.93154944,25762.0,25761.0,1.55471]
[1693911420294,0.93850944,25762.0,25761.0,1.55471]
[1693911420509,0.91846944,25762.0,25761.0,1.55471]
[1693911420683,0.92650944,25762.0,25761.0,1.55471]
[1693911421086,1.07842944,25762.0,25761.0,1.55471]
[1693911421285,1.09030944,25762.0,25761.0,1.55471]
[1693911421482,0.91498944,25762.0,25761.0,1.55471]
[1693911421688,0.92506944,25762.0,25761.0,1.55471]
[1693911421939,0.92506944,25762.0,25761.0,1.36057987]
[1693911422138,0.93316944,25762.0,25761.0,1.36057987]
[1693911422283,1.08838944,25762.0,25761.0,1.36057987]
[1693911422491,0.92638944,25762.0,25761.0,1.36057987]
[1693911422895,0.93616944,25762.0,25761.0,1.36057987]
[1693911423131,1.09294944,25762.0,25761.0,1.36057987]
[1693911423338,0.92482944,25762.0,25761.0,1.55271]
[1693911423536,0.93532944,25762.0,25761.0,1.5791421]
[1693911423739,1.09486944,25762.0,25761.0,1.5791421]
[1693911423938,1.09762944,25762.0,25761.0,1.5791421]
[1693911424149,1.09678944,25762.0,25761.0,1.5791421]
[1693911424361,0.93706944,25762.0,25761.0,1.5791421]
[1693911424565,1.09690944,25762.0,25761.0,1.5791421]
[1693911424965,1.09666944,25762.0,25761.0,1.5791421]
[1693911425287,0.93238944,25762.0,25761.0,1.5791421]
[1693911425487,1.08982944,25762.0,25761.0,1.5791421]
[1693911425956,1.09966944,25762.0,25761.0,1.5791421]
[1693911426153,1.10050944,25762.0,25761.0,0.8027871]
[1693911426357,0.92944944,25762.0,25761.0,0.8027871]
[1693911426580,0.93790944,25762.0,25761.0,0.8027871]
[1693911426987,1.09558944,25762.0,25761.0,0.8027871]
[1693911427168,1.09918944,25762.0,25761.0,0.8027871]
[1693911427308,0.92932944,25762.0,25761.0,0.8027871]
[1693911427512,0.93748944,25762.0,25761.0,0.8027871]
[1693911427710,1.09834944,25762.0,25761.0,0.8027871]
[1693911428172,1.10086944,25762.0,25761.0,0.60865697]
[1693911428323,0.92086944,25762.0,25761.0,0.63508678]
[1693911428525,1.08766944,25762.0,25761.0,0.63508678]
[1693911429126,1.09954944,25762.0,25761.0,0.63508678]
[1693911429394,0.91102944,25762.0,25761.0,0.63508678]
[1693911429572,0.92152944,25762.0,25761.0,0.63508678]
[1693911429929,0.93106944,25762.0,25761.0,0.63508678]
[1693911430303,0.91816944,25762.0,25761.0,0.63508678]
[1693911430506,0.91810944,25762.0,25761.0,0.63508678]
[1693911430917,0.92932944,25762.0,25761.0,0.63508678]
[1693911431063,0.93706944,25762.0,25761.0,0.63508678]
[1693911431273,0.91570944,25762.0,25761.0,0.63508678]
[1693911431454,0.92626944,25762.0,25761.0,0.63508678]
[1693911431895,0.93502944,25762.0,25761.0,0.63508678]
[1693911432105,1.09366944,25762.0,25761.0,0.63508678]